Cogmind - Beta 14 @@@ ROGUE MODE // 2024.11.21 @ 21:27:52 Player: Kate+Gabe4evr Result: Destroyed by S-10 Pest with Light Assault Rifle Performance ------------- Evolutions (1) 500 Regions Visited (3) 600 Robots Destroyed (9) 45 Value Destroyed (297) 297 Prototype IDs (0) 0 Alien Tech Used (0) 0 Bonus (0) 0 TOTAL SCORE: 1442 Bonus ------- None Cogmind --------- Core Integrity 0/400 Matter 290/300 Energy 88/100 System Corruption 0% Temperature Cool (0) Movement Rolling (80) Location -9/Mines Parts ------- > --- POWER (1) -------- (None) > --- PROPULSION (3) --- Wheel > --- UTILITY (3) ------ Small Storage Unit Targeting Computer > --- WEAPON (2) ------- Makeshift Sword > --- INVENTORY (8) ---- Light Ion Engine Light Ion Engine Light Ion Engine Aluminum Leg Compact Wheel Bore Cannon Plasma Cutter Peak State ------------ > --- POWER ------------ Improved Ion Engine > --- PROPULSION ------- Aluminum Leg Aluminum Leg Aluminum Leg > --- UTILITY ---------- Heat Sink Small Storage Unit Targeting Computer > --- WEAPON ----------- Light Assault Rifle Makeshift Sword > --- INVENTORY -------- Light Ion Engine Light Ion Engine Light Ion Engine Aluminum Leg Wheel Compact Wheel Bore Cannon Plasma Cutter [Rating: 14] Favorites ----------- Power Improved Ion Engine Engine Improved Ion Engine Propulsion Aluminum Leg Leg Aluminum Leg Wheel Wheel Utility Small Storage Unit Device Heat Sink Storage Small Storage Unit Processor Targeting Computer Protection Light Armor Plating Weapon EM Pulse Gun Energy Gun EM Pulse Gun Ballistic Gun Light Assault Rifle Slashing Weapon Makeshift Sword Build | -11 -10 -9 -9 ------- Run | Yrd Mat Mat Min Slots Evolved 2 | . . 2 . Power . | . . . . Propulsion 1 | . . 1 . Utility 1 | . . 1 . Weapon . | . . . . Parts Attached 20 | 6 6 3 5 Power 3 | 1 1 1 . Engine 3 | 1 1 1 . Core . | . . . . Reactor . | . . . . Propulsion 7 | 2 2 1 2 Treads . | . . . . Leg 6 | 2 2 1 1 Wheel 1 | . . . 1 Hover . | . . . . Flight . | . . . . Utility 4 | 1 1 1 1 Device 1 | . . . 1 Storage 1 | 1 . . . Processor 1 | . 1 . . Hackware . | . . . . Protection 1 | . . 1 . Artifact . | . . . . Weapon 6 | 2 2 . 2 Energy Gun 4 | 2 2 . . Energy Cannon . | . . . . Ballistic Gun 1 | . . . 1 Ballistic Cannon . | . . . . Launcher . | . . . . Special Weapon . | . . . . Impact Weapon . | . . . . Slashing Weapon 1 | . . . 1 Piercing Weapon . | . . . . Special Melee Weapon . | . . . . Unidentified Prototypes . | . . . . Corrupted Parts 2 | . 2 . . System Corruption 8 | . 8 . . Parts Lost 10 | . . . 10 Power 1 | . . . 1 Propulsion 4 | . . . 4 Utility 2 | . . . 2 Weapon 3 | . . . 3 Highest Loss Streak 6 | . . . 6 To Critical Strikes . | . . . . Average Slot Usage (%) 91 | . 96 91 89 Engine 11 | . 13 11 10 Leg 29 | . 28 33 28 Device 4 | . . . 8 Storage 11 | . 14 11 11 Processor 11 | . 14 11 11 Protection 1 | . . 3 . Energy Gun 10 | . 25 22 . Ballistic Gun 5 | . . . 9 Slashing Weapon 4 | . . . 8 Peak Build Rating 14 | 6 7 10 14 Average Rating 9 | 4 6 8 11 On Entrance 5 | . 6 7 10 Naked Turns . | . . . . Heaviest Build 19 | 12 12 19 16 Greatest Support 30 | 20 20 30 30 Greatest Overweight (x) 4 | 3 . . 4 Average Overweight (x) . | . . . . Largest Inventory Capacity 8 | 8 8 8 8 Average Capacity 7 | 7 8 8 8 Most Carried 8 | 4 7 8 8 Average Carried 6 | 1 5 7 7 Final Capacity 8 | 8 8 8 8 Final Carried 8 | 4 7 8 7 Class Distribution -------------------- 54% | Mutant 45% | Scavenger-Mutant Dominant Class ---------------- Mutant | -10/Materials Mutant | -9/Materials Scavenger-Mutant | -9/Mines Resources | -11 -10 -9 -9 ----------- Run | Yrd Mat Mat Min Matter Collected 392 | 198 92 60 42 Remotely . | . . . . Salvage Created 396 | . 100 60 236 Parts 19 | . 7 5 7 Haulers Intercepted . | . . . . Recyclers Shooed . | . . . . Parts Field Recycled . | . . . . Retrieved Matter . | . . . . Parts Self-Destructed . | . . . . Prevented . | . . . . Kills | -11 -10 -9 -9 ------- Run | Yrd Mat Mat Min Combat Hostiles Destroyed 8 | . 2 1 5 Melee 2 | . . . 2 Guns 6 | . 2 1 3 Classes Destroyed 5 | . 1 1 3 Recycler 1 | . . . 1 Swarmer 1 | . . . 1 Grunt 5 | . 2 . 3 Sentry 1 | . . 1 . Demolisher 1 | . . . 1 Best Kill Streak 3 | . 2 1 3 Combat Bots Only 3 | . 2 1 3 Max Kills in Single Turn 1 | . 1 1 1 Gunslinging . | . . . . Exploded . | . . . . Melee 1 | . . . 1 Uniques/NPCs Destroyed . | . . . . Combat | -11 -10 -9 -9 -------- Run | Yrd Mat Mat Min Hostile Shots Fired 138 | . 10 8 120 Missed 28 | . 2 2 24 Damage Taken 1298 | . 92 88 1118 Core 428 | . 24 14 390 Absorbed by Shields . | . . . . Core Remaining (%) 95 | 100 90 . . Volleys Fired 32 | . 6 4 22 Largest 2 | . 2 2 2 Hottest 80 | . 80 80 80 Shots Fired 46 | . 12 8 26 Gun 46 | . 12 8 26 Cannon . | . . . . Launcher . | . . . . Special . | . . . . Kinetic 19 | . . . 19 Thermal . | . . . . Explosive . | . . . . Electromagnetic 27 | . 12 8 7 Robot Hit Streak 16 | . 3 9 16 Robot Miss Streak 2 | . 2 . 1 Penetration Max . | . . . . Secondary Targets . | . . . . Shots Hit Robots 41 | . 7 8 26 Core Hits 16 | . 4 2 10 Critical Kills 1 | . . . 1 Critical Parts Destroyed 1 | . . . 1 Critical Strikes 3 | . 1 . 2 Destroy 2 | . . . 2 Corrupt 1 | . 1 . . Melee Attacks 11 | . . . 11 Impact . | . . . . Slashing 11 | . . . 11 Piercing . | . . . . Sneak Attacks 2 | . . . 2 Combat Hostiles . | . . . . Follow-up Attacks . | . . . . Damage Inflicted 617 | . 92 86 439 Guns 369 | . 92 86 191 Cannons . | . . . . Explosions . | . . . . Melee 248 | . . . 248 Ramming . | . . . . Kinetic 139 | . . . 139 Thermal . | . . . . Explosive . | . . . . Electromagnetic 230 | . 92 86 52 Impact . | . . . . Slashing 248 | . . . 248 Piercing . | . . . . Highest Corruption 8 | . 8 . . Average Corruption 7 | . 7 . . Corruption Purged . | . . . . Corruption Blocked . | . . . . Effects 1 | . 1 . . Energy Discharges 1 | . 1 . . Overload Shots . | . . . . Overflow Damage 46 | . . . 46 Projectiles . | . . . . Explosions . | . . . . Melee 46 | . . . 46 Knockbacks . | . . . . Impact . | . . . . Kinetic . | . . . . Secondary . | . . . . Self-Inflicted Damage . | . . . . Shots . | . . . . Rammed . | . . . . Targets Rammed . | . . . . Kicked . | . . . . Crushed . | . . . . Highest Temperature 195 | . 150 63 195 Average Temperature 99 | . 80 32 131 Received Heat Transfer 378 | . 48 36 294 Siege Activations . | . . . . Robots Corrupted . | . . . . Combat Hostiles . | . . . . Parts Fried 1 | . . 1 . Impact Corruptions . | . . . . Robots Melted . | . . . . Combat Hostiles . | . . . . Parts Melted . | . . . . Heat Transferred . | . . . . Parts Sabotaged . | . . . . Parts Stolen . | . . . . Parts Stripped . | . . . . Power Chain Reactions . | . . . . Alert | -11 -10 -9 -9 ------- Run | Yrd Mat Mat Min Peak Influence 103 | . 65 87 103 Initial 33 | . . 27 33 Average 51 | . 27 46 72 Maximum Alert Level . | . . . . Low Security (%) 100 | 100 100 100 100 Level 1 . | . . . . Level 2 . | . . . . Level 3 . | . . . . Level 4 . | . . . . Level 5 . | . . . . High Security . | . . . . Max Security . | . . . . Squads Dispatched 1 | . 1 . . Investigation . | . . . . Extermination . | . . . . Reinforcement 1 | . 1 . . Assault . | . . . . Garrison . | . . . . Intercept . | . . . . Searches Triggered . | . . . . Construction Impeded . | . . . . Haulers Reinforced . | . . . . Active Scanning Responses . | . . . . Cargo Convoy Interrupts . | . . . . Stealth | -11 -10 -9 -9 --------- Run | Yrd Mat Mat Min Distress Signals . | . . . . Communications Jammed . | . . . . Distress Signals . | . . . . Times Spotted 14 | . 3 2 9 Peak Tracking Total 5 | . 3 1 5 Tactical Retreats 1 | . . . 1 Traps | -11 -10 -9 -9 ------- Run | Yrd Mat Mat Min Traps Triggered . | . . . . Indirectly . | . . . . Trap Hack Attempts . | . . . . Triggered . | . . . . Disarmed . | . . . . Reprogrammed . | . . . . Reused . | . . . . Traps Extracted . | . . . . Installed . | . . . . Triggered . | . . . . Machines | -11 -10 -9 -9 ---------- Run | Yrd Mat Mat Min Machines Disabled . | . . . . Max in Single Turn . | . . . . Machines Repaired . | . . . . Machines Dismantled . | . . . . Machines Sabotaged . | . . . . Overloaded Fab Kills . | . . . . Hacking | -11 -10 -9 -9 --------- Run | Yrd Mat Mat Min Machines Accessed . | . . . . Terminals . | . . . . Fabricators . | . . . . Repair Stations . | . . . . Recycling Units . | . . . . Scanalyzers . | . . . . Garrison Access . | . . . . Total Hacks . | . . . . Successful . | . . . . Failed . | . . . . Catastrophic . | . . . . Database Lockouts . | . . . . Manual . | . . . . Terminals . | . . . . Fabricators . | . . . . Repair Stations . | . . . . Recycling Units . | . . . . Scanalyzers . | . . . . Garrison Access . | . . . . Terminal Hacks . | . . . . Fabricator Hacks . | . . . . Repair Station Hacks . | . . . . Recycling Unit Hacks . | . . . . Scanalyzer . | . . . . Garrison Access Hacks . | . . . . Unauthorized Hacks . | . . . . Terminals . | . . . . Fabricators . | . . . . Repair Stations . | . . . . Recycling Units . | . . . . Scanalyzers . | . . . . Garrison Access . | . . . . Data Cores Recovered . | . . . . Used . | . . . . Hacking Detections . | . . . . Full Trace Events . | . . . . Feedback Events . | . . . . Feedback Blocked . | . . . . Robot Schematics Acquired . | . . . . Robots Built . | . . . . Authchips . | . . . . Time . | . . . . Total Robot Build Rating . | . . . . Part Schematics Acquired . | . . . . Parts Built . | . . . . Authchips . | . . . . Time . | . . . . Total Part Build Rating . | . . . . Parts Repaired . | . . . . Time . | . . . . Parts Recycled . | . . . . Recycled Matter . | . . . . Retrieved Matter . | . . . . Retrieved Components . | . . . . Parts Scanalyzed . | . . . . Part Schematics Acquired . | . . . . Parts Damaged . | . . . . Bothacking | -11 -10 -9 -9 ------------ Run | Yrd Mat Mat Min Used RIF Installer . | . . . . Robots Hacked . | . . . . Non-combat . | . . . . Combat . | . . . . Robot Hacks Applied . | . . . . Relay Couplers Released . | . . . . Fabnet Peak Effective % . | . . . . Robots Rewired . | . . . . Allies Hacked . | . . . . Hacks Repelled . | . . . . Allies | -11 -10 -9 -9 -------- Run | Yrd Mat Mat Min Total Allies . | . . . . Largest Group . | . . . . Highest-Rated Group . | . . . . Highest-Rated Ally . | . . . . Total Orders . | . . . . Ally Attacks . | . . . . Total Damage . | . . . . Kills . | . . . . Allies Corrupted . | . . . . Allies Melted . | . . . . Intel | -11 -10 -9 -9 ------- Run | Yrd Mat Mat Min Robot Analysis Total . | . . . . Derelict Logs Recovered 1 | . . . 1 Drone Launches . | . . . . Drone Recoveries . | . . . . Exploration | -11 -10 -9 -9 ------------- Run | Yrd Mat Mat Min Turns Passed 720 | 69 159 125 367 Spaces Moved 435 | 46 109 82 198 Core 16 | 9 . . 7 Treads . | . . . . Legs 417 | 37 109 82 189 Wheels 2 | . . . 2 Hover . | . . . . Flight . | . . . . Fastest Speed 50 | 50 120 120 80 Average Speed 121 | 123 120 120 122 Slowest Speed 250 | 200 120 120 250 Overloaded Moves . | . . . . Propulsion Burnouts . | . . . . Robots Hopped . | . . . . Cave-ins Triggered . | . . . . Exploration Rate (%) 21 | 4 20 14 46 Regions Visited 3 Branch Regions 1 Pre-discovered Areas . | . . . . Known Exits Taken . | . . . . Unknown Exits Taken 3 | 1 1 1 . Scrap Searched 1 | . . . 1 Spaces Dug . | . . . . Terrain Destroyed . | . . . . Melee . | . . . . Projectile . | . . . . AOE . | . . . . Terrain Rammed . | . . . . Walls Destroyed . | . . . . Machines Disabled . | . . . . Actions | -11 -10 -9 -9 --------- Run | Yrd Mat Mat Min Total 565 | 55 122 99 289 Wait 62 | . . 10 52 Move 432 | 45 108 81 198 Hop . | . . . . Pick Up 8 | 4 2 1 1 Fast Attach 14 | 6 4 1 3 Attach 3 | . . 1 2 Detach . | . . . . Swap 3 | . 2 1 . Drop . | . . . . Fire 32 | . 6 4 22 Melee 11 | . . . 11 Ram . | . . . . Kick . | . . . . Crush . | . . . . Escape Stasis . | . . . . Rewire . | . . . . Trap . | . . . . Miscellaneous . | . . . . Route ------- -11/Scrapyard -10/Materials -9/Materials -9/Mines History --------- Turn | Location | Event 20 | -11/Scrapyard | Discovered new exit (range 15) 70 | -11/Scrapyard | Entered Materials 165 | -10/Materials | Discovered new exit (range 9) 229 | -10/Materials | Entered another Materials area 229 | -9/Materials | Evolved 2 slots: Propulsion x1, Utility x1 307 | -9/Materials | Build established: Mutant 348 | -9/Materials | Discovered new exit (range 6) 354 | -9/Materials | Entered Mines 413 | -9/Mines | Lost 4 parts (1n1u2w) 422 | -9/Mines | Assembled infested the area 427 | -9/Mines | Assisted by a Guerilla fighting off Assembled 437 | -9/Mines | A weapon hastily lodged in a ceiling crevice suddenly fell to the ground 614 | -9/Mines | Learned Materials security intel 690 | -9/Mines | Core integrity fell below 50% 712 | -9/Mines | Core integrity fell below 20% 721 | -9/Mines | Destroyed by S-10 Pest with Light Assault Rifle Last Messages --------------- 00687_ D-53 Grenadier destroyed. 00687_ K-01 Serf collects debris. 00688_ D-53 Grenadier destroyed. 00688_ Aluminum Leg destroyed. 00693_ The unstable cave ceiling collapses. 00695_ K-01 Serf collects debris. 00697_ The unstable cave ceiling collapses. 00697_ K-01 Serf collects debris. 00697_ Destroyed Flight Unit. 00698_ The unstable cave ceiling collapses. 00699_ K-01 Serf collects debris. 00703_ S-10 Pest destroyed. 00704_ K-01 Serf collects debris. 00707_ Imp. Ion Engine destroyed. 00708_ The unstable cave ceiling collapses. 00710_ K-01 Serf crushed by falling debris. 00710_ K-01 Serf destroyed. 00710_ Med. Matter Pod crushed. 00716_ K-01 Serf collects debris. 00721_ The unstable cave ceiling collapses. Map ----- +----------------------------------------------------+ | ?????????????????????????????????????????# #????? | | ????????????????????????????????????????## #????? | | ????????????????????????????????????????# #????? | | ????????????????????????????????######### #????? | | ????????????????????????????????# % ##???? | | ????????????????????????????????# ! ##??? | | ????????????????????????????????# #### ##?? | | ????????????????????????????????# #??# ### | | ????????????????????????????????# #??## | | ??????????????????????????? ????# #???## """" | | ??????????????????????????# ???# #????# """" | | ??????????????????????????# ???# #????# """" | | ??????????????????????????# ???# #????# # | | ??????????????????????????# ##?# ###??# # | | ???????????????????? ##### ## ##?# # | | ??????????????????? #?## ## | | ???????????????????# #???# ####? | | ??????????????????????##### ##????###???? | | ??????????????????????????## # # ##??????????? | | ???????????????????????????### # #????###???? | | ?????????????????????????????# # k# ##??## ##??? | | ????????????????????????###### # #?## #??? | | ????????????????????????# ss # # #?# ##?? | | ????????????????????????# s% ### ##? | | ?????????????????######## "" # ^ ## | | ????????????# @ """ # # # | | ????????????# """ # # ^# #^##### | | ???????????# ######## ### ^ # ^ #???## | | ???????????? ???????????# #?# ## #????# | | ????????????????????????#########?# #????# | | ??????????????????????????????????# #????# | | ??????????????????????????????????## #????## | | ???????????????????????????????????# #?????# | | ???????????????????????????????????# ####### | | ???????????????????????????????????# | | ???????????????????????????????????## ########## | | ????????????????????????????????????#####????????? | | ?????????????????????????????????????????????????? | | | | | | | | | | | | | | | | | | | | | | | | | +----------------------------------------------------+ Best States ------------- Heat Dissipation 38 Energy Generation 12 Energy Capacity 265 Matter Stores 300 Matter Capacity 300 Sight Range 16 Terrain Scan Density 10 Armor Coverage 150 Evasion (%) 55 Targeting Accuracy 5 Item Schematics ----------------- None Robot Schematics ------------------ None Fabricated ------------ Nothing Alien Tech Used ----------------- None Achievements -------------- None Challenges ------------ None Game ------ Seed SlugDecoySegregator Manual? 0 Play Time 00:07:06 Cumulative 72.2 hours Start 2024.11.21 @ 21:23:03 End 2024.11.21 @ 21:27:52 Sessions 1 Manual Loads 0 Difficulty Rogue Special Mode None Game No. 139 Rogue 139 Adventurer 0 Explorer 0 Win Type - Total 1 Types 1/0/0/0/0/0/0/0/0 Lore% 57 Gallery% 56 Achievement% 48 Wizard Run 0 Options --------- Layout 0 ASCII 0 Keyboard 1 Movement Numpad Keybinds 0 Fullscreen 2 Font 24/Terminus Map View 76x50 Zoom Use 0% Tactical HUD 1 Map Filters NONE Filters NONE Steam 1 RUN: 74d6c627-73ed-4290-be60-7f38671885c1